fUST/lending_fUST_20240630
["ID","MTS","AMOUNT","RATE_DAILY","PERIOD"]
[330672408,1719700239036,-706.04,0.00016607,2]
[330672409,1719700239047,-500.0,0.00016607,2]
[330672410,1719700239058,-2117.94,0.00016607,2]
[330672411,1719700239068,-1187.35,0.00016607,2]
[330672412,1719700239078,-4222.71,0.00016607,2]
[330672413,1719700239088,-500.0,0.00016607,2]
[330672414,1719700239099,-558.4,0.00016607,2]
[330672415,1719700239109,-500.0,0.00016607,2]
[330672416,1719700239120,-19706.9,0.00016607,2]
[330672417,1719700239130,-500.0,0.00016607,2]
[330672418,1719700239140,-1524.19,0.00016607,2]
[330672419,1719700239150,-500.0,0.00016608,2]
[330672420,1719700239160,-500.0,0.00016608,2]
[330672421,1719700239170,-500.0,0.00016608,2]
[330672422,1719700239180,-500.0,0.00016608,2]
[330672423,1719700239190,-503.32845027,0.00016608,2]
[330672424,1719700239200,-501.9338835,0.00016608,2]
[330672425,1719700239210,-500.0,0.00016608,2]
[330672426,1719700239221,-817.15,0.00016608,2]
[330672427,1719700239231,-500.0,0.00016608,2]
[330672428,1719700239240,-500.0,0.00016608,2]
[330672429,1719700239250,-500.0,0.00016608,2]
[330672430,1719700239259,-519.75471503,0.00016608,2]
[330672431,1719700239269,-500.0,0.00016608,2]
[330672432,1719700239279,-182.04441726,0.00016608,2]
[330672433,1719700239290,-552.52,0.00016608,2]
[330672434,1719700239300,-500.0,0.00016608,2]
[330672435,1719700239310,-1079.15,0.00016608,2]
[330672436,1719700239321,-500.0,0.00016608,2]
[330672437,1719700239331,-500.0,0.00016608,2]
[330672438,1719700239342,-500.0,0.00016608,2]
[330672439,1719700239352,-258.26323226,0.00016608,2]
[330672440,1719700239361,-500.0,0.00016608,2]
[330672441,1719700239371,-500.0,0.00016608,2]
[330672442,1719700239380,-500.0,0.00016608,2]
[330672443,1719700239469,-500.0,0.00016608,2]
[330672444,1719700239499,-500.0,0.00016608,2]
[330672445,1719700239509,-500.0,0.00016608,2]
[330672446,1719700239519,-500.0,0.00016608,2]
[330672447,1719700239530,-500.0,0.00016608,2]
[330672448,1719700239539,-500.0,0.00016608,2]
[330672449,1719700239549,-500.0,0.00016608,2]
[330672450,1719700239560,-500.0,0.00016608,2]
[330672451,1719700239572,-957.97,0.00016608,2]
[330672452,1719700239583,-500.0,0.00016608,2]
[330672453,1719700239593,-408.71040211,0.00016608,2]
[330672454,1719700239603,-688.27,0.00016608,2]
[330672455,1719700239612,-516.48,0.00016608,2]
[330672456,1719700239621,-500.0,0.00016608,2]
[330672457,1719700239631,-819.71,0.00016608,2]
[330672458,1719700239640,-500.0,0.00016608,2]
[330672460,1719700239650,-500.0,0.00016608,2]
[330672461,1719700239660,-500.0,0.00016608,2]
[330672464,1719700239670,-500.0,0.00016608,2]
[330672465,1719700239680,-500.0,0.00016608,2]
[330672466,1719700239690,-500.0,0.00016608,2]
[330672467,1719700239699,-500.0,0.00016608,2]
[330672468,1719700239710,-302.22589046,0.00016608,2]
[330672469,1719700239720,-504.39391531,0.00016608,2]
[330672470,1719700239730,-500.0,0.00016608,2]
[330672471,1719700239740,-500.0,0.00016608,2]
[330672472,1719700239749,-500.0,0.00016608,2]
[330672473,1719700239759,-1486.9,0.00016608,2]
[330672474,1719700239769,-500.0,0.00016608,2]
[330672475,1719700239779,-500.0,0.00016608,2]
[330672476,1719700239789,-500.0,0.00016608,2]
[330672478,1719700239800,-500.0,0.00016608,2]
[330672479,1719700239810,-522.46275303,0.00016608,2]
[330672480,1719700239821,-640.76055392,0.00016608,2]
[330672481,1719700239830,-500.0,0.00016608,2]
[330672482,1719700239840,-500.0,0.00016608,2]
[330672483,1719700239850,-500.0,0.00016608,2]
[330672484,1719700239860,-500.0,0.00016608,2]
[330672485,1719700239870,-500.0,0.00016608,2]
[330672486,1719700239880,-524.4488104,0.00016608,2]
[330672487,1719700239890,-545.95292562,0.00016608,2]
[330672488,1719700239900,-1574.6,0.00016608,2]
[330672489,1719700239910,-500.0,0.00016608,2]
[330672490,1719700239920,-500.0,0.00016608,2]
[330672491,1719700239931,-500.0,0.00016608,2]
[330672492,1719700239940,-642.33,0.00016608,2]
[330672493,1719700239950,-856.22,0.00016608,2]
[330672494,1719700239959,-500.0,0.00016608,2]
[330672495,1719700239971,-545.02406216,0.00016608,2]
[330672496,1719700239981,-500.0,0.00016608,2]
[330672497,1719700239991,-500.0,0.00016608,2]
[330672498,1719700240002,-506.16242033,0.00016608,2]
[330672499,1719700240012,-500.0,0.00016608,2]
[330672500,1719700240022,-500.0,0.00016608,2]
[330672501,1719700240033,-500.0,0.00016608,2]
[330672502,1719700240043,-850.65,0.00016608,2]
[330672503,1719700240053,-500.0,0.00016608,2]
[330672504,1719700240064,-500.0,0.00016608,2]
[330672505,1719700240074,-888.53,0.00016608,2]
[330672506,1719700240085,-500.0,0.00016608,2]
[330672507,1719700240095,-498.62426849,0.00016608,2]
[330672508,1719700240106,-507.40533053,0.00016608,2]
[330672509,1719700240116,-614.30249063,0.00016608,2]
[330672510,1719700240126,-507.33651066,0.00016608,2]
[330672511,1719700240136,-1155.87,0.00016608,2]
[330672512,1719700240146,-16515.61,0.00016608,2]
[330672513,1719700240156,-1962.31,0.00016608,2]
[330672514,1719700240167,-800.1,0.00016608,2]
[330672515,1719700240177,-711.1,0.00016608,2]
[330672516,1719700240188,-502.89687144,0.00016608,2]
[330672517,1719700240198,-500.0,0.00016608,2]
[330672518,1719700240208,-504.08985848,0.00016608,2]
[330672519,1719700240220,-500.0,0.00016608,2]
[330672520,1719700240230,-927.26,0.00016608,2]
[330672521,1719700240240,-501.72,0.00016608,2]
[330672522,1719700240250,-1219.37,0.00016608,2]
[330672523,1719700240260,-500.0,0.00016608,2]
[330672524,1719700240271,-500.0,0.00016608,2]
[330672525,1719700240281,-729.66,0.00016608,2]
[330672526,1719700240292,-500.0,0.00016608,2]
[330672527,1719700240302,-500.0,0.00016608,2]
[330672528,1719700240312,-500.0,0.00016608,2]
[330672529,1719700240322,-500.0,0.00016608,2]
[330672530,1719700240334,-693.75,0.00016608,2]
[330672531,1719700240344,-180.45,0.00016608,2]
[330672532,1719700240356,-500.0,0.00016608,2]
[330672533,1719700240367,-631.64,0.00016608,2]
[330672534,1719700240377,-500.0,0.00016608,2]
[330672535,1719700240387,-500.0,0.00016608,2]
[330672536,1719700240397,-352.01106044,0.00016608,2]
[330672537,1719700240408,-286.46347606,0.00016608,2]
[330672538,1719700240418,-500.0,0.00016608,2]
[330672539,1719700240429,-500.0,0.00016608,2]
[330672540,1719700240439,-1210.63,0.00016608,2]
[330672541,1719700240450,-500.0,0.00016608,2]
[330672542,1719700240460,-703.42,0.00016608,2]
[330672543,1719700240473,-500.0,0.00016608,2]
[330672544,1719700240483,-523.3,0.00016608,2]
[330672545,1719700240501,-500.0,0.00016608,2]
[330672546,1719700240512,-501.90636135,0.00016608,2]
[330672547,1719700240521,-501.1586156,0.00016608,2]
[330672548,1719700240532,-500.0,0.00016608,2]
[330672549,1719700240542,-500.0,0.00016608,2]
[330672550,1719700240551,-500.0,0.00016608,2]
[330672551,1719700240561,-500.0,0.00016608,2]
[330672552,1719700240571,-500.0,0.00016608,2]
[330672553,1719700240583,-13103.71,0.00016608,2]
[330672554,1719700240592,-500.0,0.00016608,2]
[330672555,1719700240602,-710.99,0.00016608,2]
[330672556,1719700240612,-504.28075772,0.00016608,2]
[330672557,1719700240622,-500.0,0.00016608,2]
[330672558,1719700240631,-504.18292755,0.00016608,2]
[330672559,1719700240641,-500.0,0.00016608,2]
[330672560,1719700240650,-500.0,0.00016608,2]
[330672561,1719700240660,-500.0,0.00016608,2]
[330672562,1719700240670,-500.0,0.00016608,2]
[330672563,1719700240680,-500.0,0.00016608,2]
[330672564,1719700240689,-500.0,0.00016608,2]
[330672565,1719700240699,-500.0,0.00016608,2]
[330672566,1719700240708,-3887.36,0.00016608,2]
[330672567,1719700240720,-500.0,0.00016608,2]
[330672568,1719700240729,-500.0,0.00016608,2]
[330672569,1719700240738,-500.0,0.00016608,2]
[330672570,1719700240748,-500.0,0.00016608,2]
[330672571,1719700240758,-536.30899488,0.00016608,2]
[330672572,1719700240767,-500.0,0.00016608,2]
[330672573,1719700240777,-557.23,0.00016608,2]
[330672574,1719700240786,-609.0,0.00016608,2]
[330672575,1719700240796,-500.0,0.00016608,2]
[330672576,1719700240805,-500.0,0.00016608,2]
[330672577,1719700240815,-500.0,0.00016608,2]
[330672578,1719700240825,-500.0,0.00016608,2]
[330672579,1719700240834,-500.0,0.00016608,2]
[330672580,1719700240843,-500.0,0.00016608,2]
[330672581,1719700240853,-1065.23,0.00016608,2]
[330672582,1719700240862,-1063.83,0.00016608,2]
[330672583,1719700240871,-500.0,0.00016608,2]
[330672584,1719700240880,-810.38,0.00016608,2]
[330672585,1719700240890,-1493.57,0.00016608,2]
[330672586,1719700240899,-500.0,0.00016608,2]
[330672587,1719700240907,-505.30489645,0.00016608,2]
[330672588,1719700240917,-502.65472074,0.00016608,2]
[330672589,1719700240926,-500.0,0.00016608,2]
[330672590,1719700240936,-500.0,0.00016608,2]
[330672591,1719700240946,-782.35,0.00016608,2]
[330672592,1719700240956,-782.35,0.00016608,2]
[330672593,1719700240968,-603.75,0.00016608,2]
[330672594,1719700240978,-792.36,0.00016608,2]
[330672595,1719700240987,-500.0,0.00016608,2]
[330672596,1719700241000,-500.0,0.00016608,2]
[330672597,1719700241010,-500.0,0.00016608,2]
[330672598,1719700241019,-501.59453709,0.00016608,2]
[330672599,1719700241029,-500.0,0.00016608,2]
[330672600,1719700241040,-500.0,0.00016608,2]
[330672601,1719700241050,-1262.35,0.00016609,2]
[330672602,1719700241146,-500.0,0.00016609,2]
[330672603,1719700241157,-500.0,0.00016609,2]
[330672604,1719700241167,-547.22061459,0.00016609,2]
[330672605,1719700241177,-2420.68,0.00016609,2]
[330672606,1719700241187,-500.0,0.00016609,2]
[330672607,1719700241196,-1044.49,0.00016609,2]
[330672608,1719700241206,-1293.69,0.00016609,2]
[330672609,1719700241217,-516.11560987,0.00016609,2]
[330672610,1719700241226,-500.0,0.00016609,2]
[330672611,1719700241236,-699.57,0.00016609,2]
[330672612,1719700241245,-1220.64,0.00016609,2]
[330672613,1719700241255,-743.08,0.00016609,2]
[330672614,1719700241265,-500.0,0.00016609,2]
[330672615,1719700241274,-597.67,0.00016609,2]
[330672616,1719700241284,-500.0,0.00016609,2]
[330672617,1719700241293,-2144.63,0.00016609,2]
[330672618,1719700241303,-500.0,0.00016609,2]
[330672619,1719700241313,-1376.19,0.00016609,2]
[330672620,1719700241322,-500.0,0.00016609,2]
[330672621,1719700241332,-2517.09,0.00016609,2]
[330672622,1719700241342,-1516.81,0.00016609,2]
[330672623,1719700241351,-1063.13,0.00016609,2]
[330672624,1719700241360,-500.0,0.00016609,2]
[330672625,1719700241370,-544.51,0.00016609,2]
[330672626,1719700241379,-512.8583965,0.00016609,2]
[330672627,1719700241388,-427.4534004,0.00016609,2]
[330672628,1719700241398,-883.23,0.00016609,2]
[330672629,1719700241407,-2647.67,0.00016609,2]
[330672630,1719700241417,-246.64130882,0.00016609,2]
[330672631,1719700241427,-500.0,0.00016609,2]
[330672632,1719700241436,-500.0,0.00016609,2]
[330672633,1719700241446,-500.0,0.00016609,2]
[330672634,1719700241455,-500.0,0.00016609,2]
[330672635,1719700241466,-500.0,0.00016609,2]
[330672636,1719700241475,-1438.47,0.00016609,2]
[330672637,1719700241486,-528.9,0.00016609,2]
[330672638,1719700241499,-630.92,0.00016609,2]
[330672639,1719700241508,-1439.33,0.00016609,2]
[330672640,1719700241518,-1195.38,0.00016609,2]
[330672641,1719700241527,-500.0,0.00016609,2]
[330672642,1719700241538,-500.0,0.00016609,2]
[330672643,1719700241547,-782.35,0.00016609,2]
[330672644,1719700241556,-784.14,0.00016609,2]
[330672645,1719700241568,-500.0,0.0001661,2]
[330672646,1719700241577,-500.0,0.0001661,2]
[330672647,1719700241586,-500.0,0.0001661,2]
[330672648,1719700241595,-500.0,0.0001661,2]
[330672649,1719700241605,-500.0,0.0001661,2]
[330672650,1719700241614,-782.35,0.0001661,2]
[330672651,1719700241623,-500.0,0.00016611,2]
[330672652,1719700241633,-500.0,0.00016611,2]
[330672653,1719700241642,-500.0,0.00016611,2]
[330672654,1719700241651,-500.0,0.00016611,2]
[330672655,1719700241660,-500.0,0.00016611,2]
[330672656,1719700241669,-1372.96,0.00016611,2]
[330672657,1719700241679,-500.0,0.00016611,2]
[330672658,1719700241688,-500.0,0.00016611,2]
[330672659,1719700241697,-500.0,0.00016611,2]
[330672660,1719700241706,-500.0,0.00016611,2]
[330672661,1719700241718,-500.0,0.00016611,2]
[330672662,1719700241726,-597.91,0.00016611,2]
[330672663,1719700241735,-500.0,0.00016611,2]
[330672664,1719700241744,-500.0,0.00016611,2]
[330672665,1719700241753,-519.90678711,0.00016611,2]
[330672666,1719700241762,-504.53820613,0.00016611,2]
[330672667,1719700241771,-632.72,0.00016611,2]
[330672668,1719700241781,-500.0,0.00016611,2]
[330672669,1719700241790,-500.0,0.00016611,2]
[330672670,1719700241800,-500.0,0.00016611,2]
[330672671,1719700241809,-538.42,0.00016611,2]
[330672672,1719700241818,-523.31886951,0.00016611,2]
[330672673,1719700241828,-500.0,0.00016611,2]
[330672674,1719700241836,-500.0,0.00016611,2]
[330672675,1719700241846,-1822.93,0.00016611,2]
[330672676,1719700241855,-1649.79,0.00016611,2]
[330672677,1719700241864,-385.10008515,0.00016611,2]
[330672678,1719700241873,-500.0,0.00016611,2]
[330672679,1719700241883,-500.0,0.00016611,2]
[330672680,1719700241892,-562.56024836,0.00016611,2]
[330672681,1719700241901,-500.0,0.00016611,2]
[330672682,1719700241910,-500.0,0.00016611,2]
[330672683,1719700241919,-500.0,0.00016611,2]
[330672684,1719700241928,-906.23,0.00016611,2]
[330672685,1719700241937,-507.86827158,0.00016611,2]
[330672686,1719700241946,-500.0,0.00016611,2]
[330672687,1719700241956,-500.0,0.00016611,2]
[330672688,1719700241966,-500.0,0.00016611,2]
[330672689,1719700241975,-287.94090915,0.00016611,2]
[330672690,1719700241984,-503.64888201,0.00016611,2]
[330672691,1719700241994,-500.0,0.00016611,2]
[330672692,1719700242004,-500.0,0.00016611,2]
[330672693,1719700242014,-500.0,0.00016611,2]
[330672694,1719700242023,-500.0,0.00016611,2]
[330672695,1719700242035,-502.60619285,0.00016611,2]
[330672696,1719700242044,-500.0,0.00016611,2]
[330672697,1719700242053,-606.43,0.00016611,2]
[330672698,1719700242062,-500.0,0.00016611,2]
[330672699,1719700242072,-500.0,0.00016611,2]
[330672700,1719700242081,-750.85,0.00016611,2]
[330672701,1719700242091,-500.0,0.00016611,2]
[330672702,1719700242100,-319.86139206,0.00016611,2]
[330672703,1719700242110,-500.0,0.00016611,2]
[330672704,1719700242119,-500.0,0.00016611,2]
[330672705,1719700242128,-300.84990925,0.00016611,2]
[330672706,1719700242137,-500.0,0.00016611,2]
[330672707,1719700242146,-500.0,0.00016611,2]
[330672708,1719700242155,-519.63,0.00016611,2]
[330672709,1719700242165,-500.0,0.00016611,2]
[330672710,1719700242174,-500.0,0.00016611,2]
[330672711,1719700242184,-500.0,0.00016611,2]
[330672712,1719700242193,-541.23,0.00016611,2]
[330672713,1719700242203,-503.40323584,0.00016611,2]
[330672714,1719700242214,-626.37,0.00016611,2]
[330672715,1719700242223,-500.0,0.00016611,2]
[330672716,1719700242233,-500.0,0.00016611,2]
[330672717,1719700242243,-500.0,0.00016611,2]
[330672718,1719700242252,-500.0,0.00016611,2]
[330672719,1719700242262,-500.0,0.00016611,2]
[330672720,1719700242272,-500.0,0.00016611,2]
[330672721,1719700242283,-500.0,0.00016611,2]
[330672722,1719700242292,-504.47039906,0.00016611,2]
[330672723,1719700242302,-500.0,0.00016611,2]
[330672724,1719700242312,-507.25,0.00016611,2]
[330672725,1719700242321,-763.98,0.00016611,2]
[330672726,1719700242331,-500.0,0.00016611,2]
[330672727,1719700242341,-500.0,0.00016611,2]
[330672728,1719700242351,-500.0,0.00016611,2]
[330672729,1719700242362,-500.0,0.00016611,2]
[330672731,1719700242371,-505.58287567,0.00016611,2]
[330672733,1719700242380,-665.69,0.00016611,2]
[330672735,1719700242390,-500.0,0.00016611,2]
[330672736,1719700242399,-500.0,0.00016611,2]
[330672738,1719700242409,-500.0,0.00016611,2]
[330672740,1719700242418,-500.0,0.00016611,2]
[330672741,1719700242427,-500.0,0.00016611,2]
[330672742,1719700242436,-500.0,0.00016611,2]
[330672743,1719700242445,-508.08559448,0.00016611,2]
[330672744,1719700242455,-500.0,0.00016611,2]
[330672745,1719700242464,-500.0,0.00016611,2]
[330672746,1719700242474,-500.0,0.00016611,2]
[330672747,1719700242483,-501.82,0.00016611,2]
[330672748,1719700242498,-734.23,0.00016611,2]
[330672752,1719700242589,-500.0,0.00016611,2]
[330672755,1719700242599,-500.0,0.00016611,2]
[330672756,1719700242608,-500.0,0.00016611,2]
[330672758,1719700242617,-500.0,0.00016611,2]
[330672760,1719700242626,-450.02226167,0.00016611,2]
[330672762,1719700242635,-1332.42,0.00016611,2]
[330672764,1719700242645,-500.0,0.00016611,2]
[330672766,1719700242654,-530.00970841,0.00016611,2]
[330672769,1719700242663,-500.0,0.00016611,2]
[330672772,1719700242672,-510.95,0.00016611,2]
[330672775,1719700242681,-504.17989085,0.00016611,2]
[330672778,1719700242691,-500.0,0.00016611,2]
[330672781,1719700242699,-500.0,0.00016611,2]
[330672784,1719700242709,-500.0,0.00016611,2]
[330672787,1719700242719,-500.0,0.00016611,2]
[330672790,1719700242728,-500.0,0.00016611,2]
[330672793,1719700242736,-500.0,0.00016611,2]
[330672796,1719700242745,-699.09,0.00016611,2]
[330672799,1719700242754,-158.37959125,0.00016611,2]
[330672802,1719700242763,-500.0,0.00016611,2]
[330672804,1719700242772,-500.0,0.00016611,2]
[330672806,1719700242782,-500.0,0.00016611,2]
[330672808,1719700242791,-500.0,0.00016611,2]
[330672810,1719700242800,-154.81422293,0.00016611,2]
[330672812,1719700242810,-500.0,0.00016611,2]
[330672814,1719700242819,-500.0,0.00016611,2]
[330672817,1719700242828,-1004.5,0.00016611,2]
[330672819,1719700242838,-500.0,0.00016611,2]
[330672821,1719700242847,-500.0,0.00016611,2]
[330672824,1719700242856,-500.0,0.00016611,2]
[330672826,1719700242865,-500.0,0.00016611,2]
[330672828,1719700242874,-500.0,0.00016611,2]
[330672830,1719700242883,-500.0,0.00016611,2]
[330672832,1719700242892,-433.03104651,0.00016611,2]
[330672834,1719700242901,-500.0,0.00016611,2]
[330672836,1719700242910,-500.0,0.00016611,2]
[330672838,1719700242919,-694.04,0.00016611,2]
[330672840,1719700242927,-500.0,0.00016611,2]
[330672842,1719700242937,-500.0,0.00016611,2]
[330672844,1719700242946,-1754.78,0.00016611,2]
[330672846,1719700242955,-500.0,0.00016611,2]
[330672848,1719700242965,-500.0,0.00016611,2]
[330672849,1719700242974,-500.0,0.00016611,2]
[330672851,1719700242982,-620.10922562,0.00016611,2]
[330672853,1719700242990,-500.0,0.00016611,2]
[330672855,1719700242999,-500.0,0.00016611,2]
[330672857,1719700243007,-500.0,0.00016611,2]
[330672859,1719700243017,-500.0,0.00016611,2]
[330672861,1719700243026,-500.0,0.00016611,2]
[330672863,1719700243036,-501.70025537,0.00016611,2]
[330672865,1719700243046,-500.0,0.00016611,2]
[330672867,1719700243056,-514.95,0.00016611,2]
[330672869,1719700243066,-936.49,0.00016611,2]
[330672871,1719700243076,-521.56,0.00016611,2]
[330672873,1719700243085,-500.0,0.00016611,2]
[330672875,1719700243095,-505.19475979,0.00016611,2]
[330672878,1719700243105,-500.0,0.00016611,2]
[330672880,1719700243115,-500.0,0.00016611,2]
[330672882,1719700243124,-1004.98,0.00016611,2]
[330672883,1719700243133,-500.0,0.00016611,2]
[330672885,1719700243142,-500.0,0.00016611,2]
[330672887,1719700243152,-500.0,0.00016611,2]
[330672889,1719700243161,-502.94616136,0.00016611,2]
[330672891,1719700243170,-502.62554742,0.00016611,2]
[330672893,1719700243179,-500.0,0.00016611,2]
[330672895,1719700243189,-3091.85,0.00016611,2]
[330672897,1719700243198,-782.35,0.00016705,2]
[330672899,1719700243207,-1934.34,0.00016707,2]
[330672902,1719700243219,-500.0,0.00016707,2]
[330672904,1719700243229,-280.83590196,0.00016707,2]
[330672906,1719700243238,-1368.48,0.00016707,2]
[330672907,1719700243248,-2504.16,0.00016707,2]
[330672911,1719700243267,-567.27,0.00016707,2]
[330672913,1719700243279,-661.16,0.00016707,2]
[330672915,1719700243289,-623.23240016,0.00016707,2]
[330672917,1719700243299,-566.99,0.00016707,2]
[330672919,1719700243309,-500.0,0.00016707,2]
[330672921,1719700243320,-500.0,0.00016707,2]
[330672923,1719700243330,-500.0,0.00016707,2]
[330672925,1719700243340,-500.0,0.00016707,2]
[330672928,1719700243350,-504.59226242,0.00016707,2]
[330672930,1719700243360,-500.0,0.00016707,2]
[330672932,1719700243370,-500.0,0.00016707,2]
[330672934,1719700243379,-625.86,0.00016707,2]
[330672936,1719700243389,-1121.09,0.00016707,2]
[330672938,1719700243399,-500.0,0.00016707,2]
[330672940,1719700243409,-2176.43,0.00016707,2]
[330672942,1719700243419,-502.92061456,0.00016707,2]
[330672944,1719700243429,-868.25,0.00016707,2]
[330672946,1719700243439,-500.0,0.00016707,2]
[330672948,1719700243449,-915.82,0.00016707,2]
[330672950,1719700243459,-2706.06,0.00016707,2]
[330672952,1719700243471,-500.0,0.00016707,2]
[330672954,1719700243481,-500.0,0.00016707,2]
[330672956,1719700243498,-414.37852674,0.00016707,2]
[330672958,1719700243508,-603.89,0.00016707,2]
[330672960,1719700243518,-544.82,0.00016707,2]
[330672962,1719700243527,-500.0,0.00016707,2]
[330672964,1719700243539,-1520.05,0.00016707,2]
[330672966,1719700243549,-500.0,0.00016707,2]
[330672969,1719700243558,-500.0,0.00016707,2]
[330672971,1719700243570,-500.0,0.00016707,2]
[330672973,1719700243581,-500.0,0.00016707,2]
[330672975,1719700243591,-1969.26,0.00016707,2]
[330672977,1719700243600,-511.63,0.00016707,2]
[330672979,1719700243610,-1565.08,0.00016707,2]
[330672981,1719700243619,-2644.28,0.00016707,2]
[330672983,1719700243629,-1216.44,0.00016707,2]
[330672985,1719700243638,-705.71,0.00016707,2]
[330672987,1719700243648,-500.0,0.00016708,2]
[330672989,1719700243657,-4712.64901401,0.00016708,2]
[330673341,1719700350545,3010.0,0.000225,30]
[330673345,1719700480914,293.10784911,0.00014999,2]
[330673352,1719700648368,181.72443311,0.00014999,2]
[330673359,1719700757431,181.61712109,0.00014999,2]
[330673384,1719701397506,-679.19380059,0.00015288,2]
[330673385,1719701397572,-161.90821471,0.00015288,2]
[330673386,1719701397601,-517.28558588,0.00015311,2]
[330673388,1719701397640,-336.64794992,0.00015311,2]
[330673409,1719701432574,-204.580427,0.0001534,2]
[330673411,1719701432584,-202.73983597,0.00015459,2]
[330673413,1719701432593,-123.62448703,0.00015995,2]
[330673655,1719701440726,-197.94238018,0.00015995,2]
[330673657,1719701440736,-875.27286241,0.0001618,2]
[330673659,1719701440748,-4409.87003274,0.0001618,2]
[330673661,1719701440758,-300.0,0.00016254,2]
[330673663,1719701440767,-17355.65049867,0.00016255,2]
[330673665,1719701440777,-153.0,0.00016455,2]
[330673667,1719701440786,-153.0,0.00016455,2]
[330673669,1719701440796,-410.751416,0.00016455,2]
[330673671,1719701440807,-205.9490316,0.00016455,2]
[330673673,1719701440816,-360.30893048,0.00016504,2]
[330673675,1719701440826,-360.30893046,0.00016505,2]
[330673677,1719701440836,-360.30893046,0.00016505,2]
[330673679,1719701440845,-360.30893046,0.00016506,2]
[330673681,1719701440856,-360.30893046,0.00016506,2]
[330673683,1719701440868,-205.9490316,0.000166,2]
[330673684,1719701440877,-306.0,0.000166,2]
[330673686,1719701440887,-4687.17864157,0.00016602,2]
[330673689,1719701440901,-3275.43135843,0.00016602,2]
[330673691,1719701440911,-500.0,0.00016602,2]
[330673692,1719701440921,-2339.26,0.00016602,2]
[330673695,1719701440932,-3151.9736378,0.00016602,2]
[330673698,1719701440947,-3037.1563622,0.00016602,2]
[330673701,1719701440957,-500.0,0.00016602,2]
[330673704,1719701440967,-662.44,0.00016602,2]
[330673706,1719701440976,-500.0,0.00016603,2]
[330673708,1719701440986,-545.09,0.00016603,2]
[330673710,1719701440996,-783.1,0.00016603,2]
[330673713,1719701441013,-500.0,0.00016603,2]
[330673716,1719701441027,-500.0,0.00016603,2]
[330673718,1719701441038,-500.0,0.00016603,2]
[330673720,1719701441048,-500.0,0.00016603,2]
[330673722,1719701441059,-529.5,0.00016603,2]
[330673724,1719701441069,-500.0,0.00016603,2]
[330673726,1719701441079,-500.0,0.00016603,2]
[330673728,1719701441089,-500.0,0.00016603,2]
[330673730,1719701441099,-500.0,0.00016603,2]
[330673732,1719701441109,-183.40138099,0.00016603,2]
[330673734,1719701441119,-1034.19,0.00016603,2]
[330673736,1719701441129,-503.32054217,0.00016603,2]
[330673738,1719701441139,-500.0,0.00016603,2]
[330673740,1719701441149,-13340.58025551,0.00016603,2]
[330673931,1719701443727,-272.94690152,0.00016603,2]
[330673932,1719701443739,-961.20018376,0.00016603,2]
[330673933,1719701443751,-455.81107464,0.00016603,2]
[330673935,1719701443763,-23064.59155174,0.00016603,2]
[330673938,1719701443867,-451.51601229,0.00016603,2]